bitfinex/quotes_ETHUSD_20250329
["timestamp","ask_amount","ask_price","bid_price","bid_amount"]
[1743247913182,1.5534,1848.5,1848.0,5.41109]
[1743247913516,1.5534,1848.5,1848.2,5.4105]
[1743247914007,0.48929518,1848.4,1848.2,5.4105]
[1743247914779,0.48929518,1848.4,1847.9,5.41154]
[1743247915114,1.5534,1848.0,1847.3,5.954594]
[1743247915425,0.48929518,1848.4,1847.8,5.4117]
[1743247915606,1.5534,1848.3,1847.8,5.41178]
[1743247915907,1.5534,1848.3,1847.8,5.4116]
[1743247916112,1.5534,1848.3,1847.8,10.82329]
[1743247916281,1.5534,1848.3,1847.8,5.4116]
[1743247916697,7.660136,1848.3,1847.6,5.41217]
[1743247916906,5.41068,1848.2,1847.6,5.41217]
[1743247917216,5.41068,1848.2,1847.5,5.41265]
[1743247917217,5.45414928,1847.8,1847.5,5.41265]
[1743247917508,5.45414928,1847.8,1847.4,5.41294]
[1743247918210,5.45414928,1847.8,1847.2,5.41357]
[1743247918411,1.5534,1847.7,1847.2,5.41335]
[1743247918630,1.5534,1847.7,1847.4,5.41281]
[1743247918918,6.96569,1847.7,1847.1,10.82749]
[1743247919152,5.41266,1847.6,1847.0,0.005]
[1743247919281,5.4129,1847.5,1847.0,0.005]
[1743247919481,5.41248,1847.6,1847.0,0.005]
[1743247919699,6.96572,1847.7,1847.3,5.41313]
[1743247919700,1.5534,1847.7,1847.3,5.41313]
[1743247920106,1.5534,1847.7,1847.3,10.82631]
[1743247920395,1.5534,1847.7,1847.4,5.41294]
[1743247920580,5.45414928,1847.8,1847.7,5.41213]
[1743247920912,5.45414928,1847.8,1847.6,5.41228]
[1743247921322,1.5534,1848.0,1847.6,5.41228]
[1743247921479,1.5534,1848.0,1847.6,5.41219]
[1743247921686,2.45344,1848.0,1847.4,5.41299]
[1743247921988,7.86469,1848.0,1847.4,5.41299]
[1743247922208,2.45344,1848.0,1847.4,5.41276]
[1743247922519,2.45344,1848.0,1847.5,5.41269]
[1743247922718,7.86472,1848.0,1847.4,5.41276]
[1743247923016,5.41156,1847.9,1847.4,5.41276]
[1743247923190,1.5534,1848.0,1847.6,5.41226]
[1743247923395,1.5534,1848.0,1847.5,5.41269]
[1743247923601,1.5534,1848.0,1847.6,5.41241]
[1743247923919,5.41022,1848.4,1847.8,5.41172]
[1743247924216,7.02436,1848.3,1847.7,5.4121]
[1743247924415,1.6139,1848.3,1847.8,5.41165]
[1743247924625,7.02432,1848.3,1847.7,5.4121]
[1743247924831,1.6139,1848.3,1847.9,5.41129]
[1743247925066,1.6139,1848.3,1847.9,5.41138]
[1743247925180,1.6139,1848.3,1848.0,5.41099]
[1743247925385,7.02344,1848.6,1848.0,10.82211]
[1743247925584,2.857193,1848.6,1848.0,5.41099]
[1743247925833,1.6139,1848.9,1848.5,5.40979]
[1743247925996,1.6139,1848.9,1848.3,5.41037]
[1743247926189,1.6139,1848.9,1848.5,5.40979]
[1743247926515,1.6139,1848.9,1848.5,5.4636904]
[1743247926682,1.6139,1848.9,1848.7,5.40908]
[1743247926887,1.6139,1848.9,1848.6,5.40933]
[1743247927203,0.55,1849.0,1848.7,5.40917]
[1743247927793,0.55,1849.0,1848.9,5.40862]
[1743247928716,0.55,1849.0,1848.9,5.95862]
[1743247929616,0.55,1849.0,1848.9,5.40862]
[1743247929922,0.55,1849.0,1848.9,5.46268888]
[1743247930220,1.6139,1850.0,1848.9,7.877]
[1743247930478,5.40589,1849.9,1849.2,5.40747]
[1743247930939,5.40589,1849.9,1849.0,5.40812]
[1743247930940,5.40611,1849.8,1849.0,5.40812]
[1743247931124,5.40628,1849.7,1849.1,5.40786]
[1743247931328,5.40628,1849.7,1849.0,5.40809]
[1743247931647,7.02151,1849.3,1848.7,5.40916]
[1743247931815,5.40775,1849.2,1848.6,5.40921]
[1743247932019,8.264399,1849.3,1848.7,5.40906]
[1743247932221,8.264399,1849.3,1848.4,7.343]
[1743247932420,8.264399,1849.3,1848.7,5.40908]
[1743247932655,5.40776,1849.2,1848.6,5.40934]
[1743247932918,12.42921,1849.3,1848.6,5.40924]
[1743247933124,7.02151,1849.3,1848.6,5.4092]
[1743247933319,12.42908,1849.3,1848.7,5.40906]
[1743247933526,12.42907,1849.3,1848.7,5.40906]
[1743247933723,7.02147,1849.3,1848.7,5.40906]
[1743247934028,1.6139,1849.3,1848.8,5.40877]
[1743247934342,1.6139,1849.3,1848.5,5.40954]
[1743247934545,1.6139,1849.3,1849.0,5.40819]
[1743247934715,1.6139,1849.6,1849.0,0.05407746]
[1743247934924,1.6139,1849.6,1849.0,5.40816]
[1743247935144,1.6139,1849.6,1849.1,5.46189311]
[1743247935352,7.29,1849.8,1849.2,5.40752]
[1743247935844,1.6139,1849.9,1849.2,5.40752]
[1743247936048,1.6139,1849.9,1849.4,5.40697]
[1743247936049,2.50309,1849.9,1849.4,5.40697]
[1743247936223,2.50309,1849.9,1849.3,5.40739]
[1743247936761,1.6139,1849.9,1849.5,5.40685]
[1743247936921,1.6139,1849.9,1849.5,5.40684]
[1743247937116,1.6139,1849.9,1849.4,5.40701]
[1743247937349,1.6139,1849.9,1849.4,5.40695]
[1743247937859,1.6139,1849.9,1849.2,5.40756]
[1743247938146,1.6139,1849.9,1849.4,5.40698]
[1743247938719,7.26,1850.1,1848.7,5.40898]
[1743247938720,5.40673,1849.6,1848.7,5.40898]
[1743247938932,1.641,1849.5,1848.6,5.40925]
[1743247939269,1.641,1849.5,1848.8,5.40886]
[1743247939451,1.641,1849.5,1848.7,5.40914]
[1743247939615,5.40734,1849.4,1848.5,5.40978]
[1743247939815,5.40734,1849.4,1848.5,10.81944]
[1743247939816,0.540734,1849.3,1848.5,10.81944]
[1743247940021,0.540734,1849.3,1848.5,5.40966]
[1743247940657,5.40804,1849.1,1848.3,5.4101]
[1743247940867,7.0489,1849.2,1848.3,5.4101]
[1743247941159,7.0489,1849.2,1848.4,5.41007]
[1743247941363,0.70489,1849.1,1848.4,5.41007]
[1743247941527,6.11293,1849.1,1848.3,5.4101]
[1743247942461,6.11293,1849.1,1848.2,5.41053]
[1743247942664,5.40904,1848.8,1847.9,7.00728]
[1743247942825,1.641,1848.7,1847.8,35.866]
[1743247943020,1.641,1848.7,1848.1,5.41082]
[1743247943220,1.641,1848.7,1848.0,5.41125]
[1743247943657,1.641,1848.7,1848.0,5.41104]
[1743247943833,1.641,1848.7,1848.1,5.41092]
[1743247944746,1.641,1848.7,1848.0,5.41104]
[1743247944952,1.641,1848.7,1848.0,5.41101]
[1743247945139,1.641,1848.7,1848.1,5.41093]
[1743247945849,7.05038,1848.7,1848.0,11.721851]
[1743247946054,7.05038,1848.7,1848.0,10.82209]
[1743247946253,1.641,1848.7,1848.1,5.41081]
[1743247946467,1.641,1848.7,1848.0,5.41109]
[1743247946648,1.641,1848.7,1848.2,5.41062]
[1743247946850,1.641,1848.7,1847.9,3.5866]
[1743247947077,7.05022,1848.7,1848.1,5.41079]
[1743247947280,7.05022,1848.7,1848.0,5.41125]
[1743247947456,1.641,1848.2,1847.6,5.41241]
[1743247947662,1.641,1848.2,1847.7,5.4121]
[1743247947879,1.641,1848.2,1847.6,5.41223]
[1743247948067,5.41144,1848.0,1847.4,5.41287]
[1743247948587,5.41117,1848.1,1847.2,5.41359]
[1743247948588,5.41096,1848.1,1847.2,5.41359]
[1743247948902,5.41197,1847.8,1847.2,5.41359]
[1743247949079,5.41197,1847.8,1847.0,35.64279]
[1743247949080,5.41276,1847.5,1847.0,0.005]
[1743247949267,1.641,1847.7,1847.0,0.005]
[1743247949472,1.641,1847.1,1847.0,0.005]
[1743247950882,7.05489,1847.1,1847.0,0.005]
[1743247951065,8.301764,1847.1,1847.0,0.005]
[1743247951796,1.641,1847.1,1847.0,0.005]
[1743247952288,1.641,1847.7,1847.1,5.41372]
[1743247952454,1.641,1847.7,1847.4,5.41288]
[1743247952662,1.5784,1848.1,1847.7,5.41198]
[1743247952984,1.5784,1848.4,1848.0,5.41112]
[1743247953184,1.5784,1848.4,1847.6,7.04456]
[1743247953388,5.4105,1848.3,1847.6,6.116616]
[1743247953586,1.5784,1848.4,1847.3,5.41312]
[1743247953790,1.5784,1848.4,1847.0,7.16]
[1743247953791,5.41145,1848.0,1847.4,5.41297]
[1743247954104,6.99229,1847.1,1847.0,0.005]
[1743247954256,8.7954,1847.1,1847.0,0.005]
[1743247954656,1.5784,1847.1,1847.0,0.005]
[1743247954899,1.5784,1847.7,1847.0,5.41918]
[1743247955188,1.5784,1847.1,1847.0,0.005]
[1743247955356,6.99229,1847.1,1847.0,0.005]
[1743247955690,1.5784,1847.1,1847.0,0.005]
[1743247955890,1.5784,1847.5,1847.0,0.005]
[1743247956085,5.4133,1847.3,1847.0,0.005]
[1743247956697,5.41372,1847.2,1847.0,0.005]
[1743247957090,10.82759,1847.2,1847.0,0.005]
[1743247957410,5.41389,1847.1,1847.0,0.005]
[1743247957689,6.99229,1847.1,1847.0,0.005]
[1743247958516,16.917837,1847.1,1847.0,0.005]
[1743247958676,14.19029,1847.1,1847.0,0.005]
[1743247959773,8.7764,1847.1,1847.0,0.005]
[1743247960184,18.60167637,1847.1,1847.0,0.005]
[1743247960381,15.97899637,1847.1,1847.0,0.005]
[1743247960561,20.63209637,1847.1,1847.0,0.005]
[1743247960964,0.0916,1846.2,1846.1,0.005]
[1743247961980,5.50813,1846.2,1846.1,0.005]
[1743247962176,0.0916,1846.2,1846.1,0.005]
[1743247962599,5.50813,1846.2,1846.1,0.005]
[1743247962894,0.0916,1846.2,1846.1,0.005]
[1743247963305,5.50813,1846.2,1846.1,0.005]
[1743247963604,0.0916,1846.2,1846.1,0.005]
[1743247963790,8.8184,1846.7,1846.1,0.005]
[1743247964097,3.36710637,1847.1,1846.6,5.41515]
[1743247964281,1.5784,1847.1,1846.5,5.41541]
[1743247964474,1.5784,1847.1,1846.5,5.41535]
[1743247964697,1.5784,1847.1,1846.4,5.41594]
[1743247964997,1.5784,1847.4,1846.8,10.82918]
[1743247965294,1.5784,1847.4,1846.9,5.41423]
[1743247965465,1.5784,1847.4,1847.0,5.41417]
[1743247965667,1.5784,1847.7,1847.2,5.41344]
[1743247965867,6.99079,1847.7,1847.0,5.41403]
[1743247966095,3.69694374,1848.0,1846.9,14.828213]
[1743247966096,1.5784,1848.0,1847.3,5.41322]
[1743247966270,3.37105137,1848.0,1847.3,5.41322]
[1743247966471,1.5784,1848.0,1847.5,5.41271]
[1743247966688,1.5784,1848.0,1847.4,5.4128]
[1743247967117,9.10894374,1847.8,1846.9,7.588183]
[1743247967400,9.10894374,1847.8,1847.0,5.41414]
[1743247967597,5.41232,1847.7,1847.0,5.41414]
[1743247967812,9.10894374,1847.8,1847.1,5.41387]
[1743247968015,5.41239,1847.7,1847.0,1.3002323]
[1743247968218,7.02087,1847.5,1846.8,10.82918]
[1743247968517,1.608,1847.5,1846.7,5.41506]
[1743247968715,1.608,1847.5,1846.9,5.41418]
[1743247968917,1.608,1847.8,1846.7,5.41506]
[1743247969241,1.608,1847.8,1846.9,7.256]
[1743247969418,7.02,1847.8,1847.0,11.55381]
[1743247969575,1.608,1847.8,1847.2,5.41355]
[1743247969920,7.01994,1847.8,1847.1,10.82741]
[1743247970117,1.608,1847.8,1847.3,5.41329]
[1743247970332,1.608,1847.8,1847.0,0.7256]
[1743247970506,1.608,1847.8,1846.9,5.41429]
[1743247970507,9.10963374,1847.6,1846.8,5.41457]
[1743247970706,5.41299,1847.5,1846.8,5.41457]
[1743247971226,5.41299,1847.5,1846.9,5.41445]
[1743247971512,7.01997,1847.8,1847.1,5.41367]
[1743247971729,1.608,1847.8,1847.3,5.41328]
[1743247972180,1.608,1847.8,1847.3,5.41313]
[1743247972387,1.608,1847.8,1847.2,5.41356]
[1743247972889,1.558,1847.8,1847.2,5.41356]
[1743247973082,5.41216,1847.7,1847.1,5.41369]
[1743247973283,12.38197,1847.8,1847.1,5.41369]
[1743247973538,12.38197,1847.8,1847.0,5.41416]
[1743247973539,5.41233,1847.7,1847.0,5.41416]
[1743247973813,1.558,1847.8,1847.2,5.41343]
[1743247974519,1.558,1847.8,1847.3,5.41314]
[1743247974684,1.558,1847.8,1847.4,5.41286]
[1743247975292,10.87594374,1848.2,1847.5,5.41256]
[1743247975489,16.28661374,1848.2,1847.6,5.41225]
[1743247975695,16.28661374,1848.2,1847.5,5.41256]
[1743247975696,1.608,1848.3,1847.9,5.41141]
[1743247975894,1.608,1848.3,1847.9,10.82271]
[1743247976135,1.608,1848.3,1847.8,5.41179]
[1743247976289,7.720213,1848.3,1847.5,5.41244]
[1743247976496,2.309813,1848.3,1847.8,5.41175]
[1743247976830,2.309813,1848.3,1847.7,5.412]
[1743247976831,1.608,1848.3,1847.5,5.41246]
[1743247976996,3.69694374,1848.2,1847.5,5.41246]
[1743247977323,3.69694374,1848.2,1847.4,1.5707]
[1743247977324,3.69694374,1848.2,1847.7,5.41211]
[1743247977518,3.69694374,1848.2,1847.6,5.41222]
[1743247977925,9.10774374,1848.2,1847.5,5.41271]
[1743247978116,6.48237437,1848.2,1847.5,5.41244]
[1743247978633,1.608,1848.3,1847.8,5.41168]
[1743247978801,7.01838,1848.3,1847.7,5.41199]
[1743247979131,1.608,1848.3,1847.8,5.41177]
[1743247979422,1.608,1848.3,1847.8,5.41164]
[1743247979623,12.54521,1848.7,1848.1,5.41079]
[1743247979792,2.862521,1848.6,1848.0,5.41125]
[1743247979997,8.272161,1848.6,1848.0,5.41125]
[1743247980192,8.272161,1848.6,1847.6,5.41238]
[1743247980193,1.608,1848.6,1848.2,5.41055]
[1743247980403,5.31889176,1848.9,1848.3,5.4102]
[1743247980602,1.608,1848.9,1848.5,5.40959]
[1743247980820,7.01685,1848.9,1848.2,6.99321]
[1743247981045,5.4095,1848.6,1848.0,5.41112]
[1743247981193,0.54095,1848.6,1848.1,5.41087]
[1743247981393,0.55,1849.0,1848.3,1.5826]
[1743247981743,0.55,1849.0,1848.2,5.41046]
[1743247981923,5.4091,1848.8,1848.2,5.41046]
[1743247982239,14.52916176,1848.8,1848.2,5.41046]
[1743247982397,5.40935,1848.7,1848.1,5.41092]
[1743247982602,5.40935,1848.7,1848.0,6.9937]
[1743247982603,5.950565,1848.6,1848.0,6.99371]
[1743247982798,0.540935,1848.6,1848.0,6.99363]
[1743247983074,3.71089176,1848.8,1848.3,5.41029]
[1743247983241,9.11981176,1848.8,1848.1,5.4108]
[1743247983544,9.11985176,1848.8,1847.9,7.109]
[1743247983710,9.11982176,1848.8,1848.1,5.41078]
[1743247983908,6.32131218,1848.7,1848.1,5.41078]
[1743247984239,11.73077218,1848.7,1848.1,5.41078]
[1743247984466,6.32123218,1848.7,1847.8,41.1578]
[1743247984653,0.91198218,1848.7,1848.1,5.41082]
[1743247984972,0.91198218,1848.7,1848.1,5.41092]
[1743247985134,5.40961,1848.6,1848.0,5.41114]
[1743247985480,1.5332,1848.4,1847.6,5.41241]
[1743247985770,5.41069,1848.2,1847.6,5.41231]
[1743247985932,3.71089176,1848.2,1847.1,28.642]
[1743247986135,5.41179,1847.9,1847.3,5.41312]
[1743247986368,5.41131,1848.0,1847.4,5.41286]
[1743247986528,5.41168,1847.9,1847.3,5.41306]
[1743247986723,5.41131,1848.0,1847.4,5.41301]
[1743247986924,1.90428918,1848.1,1847.5,5.41268]
[1743247987266,5.41142,1848.0,1847.3,5.41304]
[1743247987440,0.541142,1847.9,1847.4,5.41297]
[1743247987638,7.31537918,1848.1,1847.4,5.41289]
[1743247988275,1.90428918,1848.1,1847.6,5.41235]
[1743247988563,1.90428918,1848.1,1847.6,5.41225]
[1743247988770,1.90428918,1848.1,1847.4,5.41284]
[1743247989075,3.71089176,1847.9,1847.2,5.41341]
[1743247989371,6.94566,1847.6,1847.1,28.642]
[1743247989574,6.94566,1847.6,1846.8,5.41459]
[1743247989853,5.41304,1847.4,1846.8,5.41475]
[1743247990067,5.41304,1847.4,1846.7,5.41501]
[1743247990241,5.41304,1847.4,1846.6,6.95545]
[1743247990242,5.41349,1847.3,1846.6,6.95525]
[1743247990441,5.41349,1847.3,1846.6,5.41515]
[1743247990442,5.41374,1847.2,1846.6,5.41515]
[1743247990630,1.5332,1847.1,1846.7,5.41501]
[1743247991583,1.5332,1847.4,1847.1,5.4137]
[1743247991876,1.5332,1847.4,1847.0,10.82819]
[1743247992032,1.5332,1847.4,1846.9,5.41443]
[1743247992232,1.5332,1847.4,1846.9,5.955873]
[1743247992529,7.38908918,1847.8,1846.9,0.541443]
[1743247992530,6.94546,1847.7,1846.9,0.541443]
[1743247992735,1.5332,1847.7,1847.0,0.05413032]
[1743247992966,1.5332,1847.7,1847.1,5.41389]
[1743247993168,1.5332,1847.7,1847.0,1.5401]
[1743247993388,1.5332,1847.7,1847.1,5.41376]
[1743247993666,1.5332,1847.7,1847.4,5.41283]
[1743247993840,3.71089176,1847.8,1847.1,5.4137]
[1743247994052,14.53486176,1847.8,1847.1,5.4137]
[1743247994241,5.24409176,1847.5,1846.7,5.41494]
[1743247994452,5.41371,1847.2,1846.5,5.41541]
[1743247994743,5.41391,1847.1,1846.5,9.41708961]
[1743247994948,1.5332,1846.9,1846.4,5.41594]
[1743247995286,1.5332,1846.9,1846.4,5.4159]
[1743247995594,5.24409176,1847.2,1846.6,5.41514]
[1743247995878,1.5332,1847.2,1846.7,5.41491]
[1743247996070,1.5332,1847.2,1846.8,5.41472]
[1743247996365,1.5332,1847.2,1846.5,5.41546]
[1743247996366,6.94703,1847.2,1846.5,5.41546]
[1743247996667,6.94703,1847.2,1846.6,5.4152]
[1743247996668,7.641733,1847.2,1846.6,5.4152]
[1743247996829,5.93879476,1847.2,1846.1,0.005]
[1743247997038,5.41481,1846.8,1846.2,5.41628]
[1743247997433,5.41608,1846.4,1846.1,0.005]
[1743247997636,3.71089176,1846.6,1846.1,0.005]
[1743247997843,5.41653,1846.2,1846.1,0.005]
[1743247998046,13.52804176,1846.2,1846.1,0.005]
[1743247998291,5.41909,1845.4,1845.2,0.005]
[1743247998464,6.93217,1845.3,1845.2,0.005]
[1743247999171,12.011688,1845.3,1845.2,0.005]
[1743247999467,1.513,1844.9,1844.1,0.1097775]
[1743247999771,5.42225,1844.3,1844.1,0.1097775]
[1743247999935,5.4224,1844.2,1844.1,0.1097775]
[1743248000138,19.586956,1844.2,1844.1,0.1097775]
[1743248000474,19.560775,1844.2,1844.1,0.1097775]
[1743248000644,20.094889,1844.2,1844.1,0.1097775]
[1743248000836,5.42446,1843.6,1843.2,5.63019364]
[1743248001036,3.71089176,1843.3,1843.0,0.05425]
[1743248001235,1.513,1843.5,1843.0,0.05425]
[1743248001466,1.306,1843.5,1843.1,5.42562]
[1743248001690,7.197,1843.9,1843.1,10.85091]
[1743248001997,7.197,1843.9,1843.3,5.42504]
[1743248002268,9.115825,1844.3,1843.5,5.42423]
[1743248002269,0.693525,1844.3,1843.5,5.42423]
[1743248002469,9.13142176,1844.9,1843.9,5.42308]
[1743248002669,10.92289176,1844.9,1844.0,5.42277]
[1743248003002,5.41962,1845.2,1844.3,5.42195]
[1743248003288,3.71089176,1845.1,1844.2,5.42223]
[1743248003436,3.71089176,1845.1,1844.5,5.42149]
[1743248003638,4.08198094,1845.1,1844.3,5.42183]
[1743248003937,4.08198094,1845.1,1844.3,10.84376]
[1743248004157,3.71089176,1845.3,1844.6,5.42107]
[1743248004371,3.71089176,1845.3,1844.4,5.37162]
[1743248004372,5.22389176,1845.3,1844.4,5.37162]
[1743248004543,1.513,1845.3,1844.2,5.4224]
[1743248004806,1.513,1845.3,1844.6,5.42108]
[1743248004972,1.513,1845.3,1844.7,5.42088]
[1743248005159,1.513,1845.3,1844.7,1.084184]
[1743248005370,1.513,1845.3,1844.1,8.8674]
[1743248005540,5.41963,1845.2,1844.3,5.42191]
[1743248005738,1.513,1845.3,1844.4,5.4216]
[1743248005739,6.93241,1845.3,1844.4,5.4216]
[1743248005964,5.41954,1845.2,1844.3,5.42191]
[1743248006178,0.541954,1845.1,1844.2,5.42213]
[1743248006473,5.961764,1845.1,1844.2,5.42213]
[1743248006769,1.513,1844.9,1844.2,5.37238]
[1743248007066,1.513,1844.9,1844.4,5.42177]
[1743248007269,1.513,1844.9,1844.5,5.475693]
[1743248007569,5.4199,1845.1,1844.2,5.4224]
[1743248007783,1.513,1844.9,1844.3,5.4221]
[1743248008065,1.513,1844.9,1844.4,5.42175]
[1743248008268,1.513,1844.9,1844.2,5.42221]
[1743248008469,6.93348,1844.9,1844.1,5.42266]
[1743248008635,1.513,1844.9,1844.3,5.42203]
[1743248008836,2.75658918,1844.9,1844.3,5.42203]
[1743248009054,2.75658918,1844.9,1844.3,5.37203]
[1743248009278,2.75658918,1844.9,1844.2,5.42234]
[1743248009279,2.75658918,1844.9,1844.4,5.42161]
[1743248009481,1.513,1844.9,1844.4,5.42161]
[1743248009686,1.513,1844.9,1843.9,7.216]
[1743248009687,1.513,1844.9,1844.5,5.42127]
[1743248009840,6.90111301,1844.9,1844.5,5.42127]
[1743248010035,6.90111301,1844.9,1844.1,5.42258]
[1743248010269,6.90111301,1844.9,1844.2,5.4224]
[1743248010459,0.6901113,1844.8,1844.3,5.4221]
[1743248010660,6.90111301,1844.9,1844.5,5.42138]
[1743248011062,6.90111301,1844.9,1844.5,5.42132]
[1743248011264,6.90111301,1844.9,1844.5,10.84271]
[1743248011473,6.90111301,1844.9,1844.6,5.42094]
[1743248011763,6.90111301,1844.9,1844.5,5.42147]
[1743248011968,5.38811301,1844.9,1844.6,5.42122]
[1743248012283,5.38811301,1844.9,1844.8,5.42064]
[1743248012892,5.38811301,1844.9,1844.6,5.42096]
[1743248013045,5.38811301,1844.9,1844.4,5.42167]
[1743248013382,5.42228,1844.3,1843.6,5.42414]
[1743248013678,8.8102,1844.4,1843.3,0.542504]
[1743248013893,1.6342,1843.9,1843.1,5.42541]
[1743248014096,1.6342,1843.9,1843.6,5.42403]
[1743248014439,1.6342,1844.3,1843.7,0.05424008]
[1743248014538,1.6342,1844.3,1843.7,5.42367]
[1743248014743,1.6342,1844.3,1843.9,5.42309]
[1743248014985,1.6342,1844.3,1843.9,5.37309]
[1743248015191,1.6342,1844.3,1844.0,5.42277]
[1743248015347,1.6342,1844.3,1843.7,0.05423044]
[1743248015348,1.6342,1844.3,1843.9,10.84633]
[1743248015543,1.6342,1844.3,1843.7,5.42364]
[1743248015744,1.6342,1844.3,1843.9,5.42316]
[1743248015980,1.6342,1844.7,1844.2,5.4224]
[1743248016141,1.6342,1844.7,1844.3,5.42205]
[1743248016344,1.6342,1844.7,1844.2,5.42223]
[1743248016976,1.6342,1844.7,1844.4,5.42172]
[1743248017180,1.6342,1844.7,1844.4,5.42158]
[1743248017375,1.6342,1844.7,1844.5,5.42134]
[1743248017575,7.05409,1845.1,1844.3,5.37196]
[1743248017750,0.705409,1845.0,1844.4,5.42179]
[1743248017950,0.705409,1845.0,1844.4,10.84338]
[1743248018150,5.38811301,1844.9,1844.4,5.42159]
[1743248018379,5.42076,1844.8,1844.1,5.42265]
[1743248018571,1.6342,1844.7,1844.2,5.42217]
[1743248018767,1.6342,1844.7,1844.4,5.42167]
[1743248019298,1.6342,1844.7,1844.1,5.42256]
[1743248019579,1.6342,1844.7,1844.0,5.42287]
[1743248019884,7.05517,1844.7,1844.0,5.42287]
[1743248020092,1.6342,1844.7,1844.2,5.42237]
[1743248020250,1.6342,1844.7,1844.1,5.42267]
[1743248020451,1.6342,1844.7,1844.1,5.42252]
[1743248020925,1.6342,1844.7,1844.1,10.84507]
[1743248021180,1.6342,1844.7,1844.1,5.42252]
[1743248022051,1.6342,1844.7,1844.0,5.42298]
[1743248022252,7.05572,1844.5,1843.7,5.42375]
[1743248022452,6.127512,1844.4,1843.7,5.42372]
[1743248022653,0.705572,1844.4,1844.0,5.42298]
[1743248022952,1.6342,1844.5,1843.9,5.42327]
[1743248023152,5.42186,1844.4,1843.7,5.42375]
[1743248023358,10.84385,1844.4,1843.7,5.42375]
[1743248023679,5.42235,1844.3,1843.6,10.84812]
[1743248023865,5.42235,1844.3,1843.6,5.42397]
[1743248024061,5.964705,1844.2,1843.5,5.42445]
[1743248024289,5.42314,1844.0,1843.1,28.695]
[1743248024490,5.42359,1843.8,1843.2,5.42521]
[1743248024692,5.4234,1843.9,1843.2,5.42518]
[1743248024994,5.4234,1843.9,1843.2,10.85031]
[1743248025195,0.54234,1843.8,1843.2,5.42513]
[1743248025389,1.6342,1843.7,1843.0,12.60207]
[1743248025783,5.42432,1843.6,1843.0,0.05425]
[1743248025986,1.6342,1843.7,1843.3,5.42491]
[1743248026186,1.6342,1843.7,1843.2,5.42534]
[1743248026373,1.25956285,1843.6,1843.1,5.42544]
[1743248026778,1.25956285,1843.6,1843.2,10.85044]
[1743248027092,1.25956285,1843.6,1843.4,5.42455]
[1743248027350,1.25956285,1843.6,1843.2,5.42529]
[1743248027494,1.25956285,1843.6,1843.0,5.42592]
[1743248027677,1.25956285,1843.6,1843.5,5.42446]
[1743248027863,1.25956285,1843.6,1843.0,5.42592]
[1743248027864,1.25956285,1843.6,1843.3,5.42504]
[1743248028095,1.25956285,1843.6,1843.0,5.42578]
[1743248028415,1.25956285,1843.6,1843.1,5.42563]
[1743248028581,1.25956285,1843.5,1843.1,5.42563]
[1743248028790,1.25956285,1843.5,1843.3,5.42479]
[1743248029187,1.25956285,1843.5,1843.4,5.42475]
[1743248029378,1.25956285,1843.5,1843.2,5.42522]
[1743248029579,1.25956285,1843.5,1843.2,5.42517]
[1743248029777,1.25956285,1843.5,1843.2,10.85028]
[1743248029991,0.25956285,1843.5,1843.2,5.42511]
[1743248030294,0.25956285,1843.4,1843.2,10.85024]
[1743248030596,0.25956285,1843.4,1843.3,5.47929742]
[1743248031095,1.5137,1844.3,1843.7,5.42372]
[1743248031304,1.45334176,1844.4,1844.0,5.42296]
[1743248031607,12.32306301,1844.6,1844.0,5.42296]
[1743248031916,12.32306301,1844.6,1843.9,5.42321]
[1743248032068,14.09746331,1844.6,1844.0,5.42278]
[1743248032862,14.09746331,1844.6,1844.0,5.42298]
[1743248033067,5.38811301,1844.3,1843.9,5.42307]
[1743248033686,5.38811301,1844.3,1844.2,5.4224]
[1743248034002,5.38811301,1844.3,1844.1,5.4226]
[1743248034199,5.38811301,1844.3,1844.2,5.4224]
[1743248034368,5.38811301,1844.3,1844.2,7.0785]
[1743248034699,5.38811301,1844.3,1844.2,14.1405]
[1743248035061,5.38811301,1844.3,1844.2,7.0785]
[1743248035266,5.38811301,1844.3,1844.2,14.1325]
[1743248035564,5.38811301,1844.3,1844.2,16.56755508]
[1743248037604,5.38811301,1845.0,1844.5,5.42135]
[1743248037783,5.38811301,1845.0,1844.6,5.42105]
[1743248038220,5.38811301,1845.0,1844.6,10.84213]
[1743248038373,5.38811301,1845.0,1844.7,5.4208]
[1743248038773,5.38811301,1845.0,1844.3,5.42206]
[1743248039003,5.38811301,1845.0,1844.6,5.4212]
[1743248039191,1.5137,1844.9,1844.0,5.42299]
[1743248039524,1.5137,1844.9,1844.4,5.42181]
[1743248039826,1.5137,1844.9,1844.6,5.42105]
[1743248040122,1.5137,1844.9,1844.7,5.42089]
[1743248040420,5.38811301,1845.0,1844.9,7.07644]
[1743248040624,3.01e-06,1845.0,1844.9,7.07644]
[1743248040915,3.01e-06,1845.0,1844.9,14.06544]
[1743248041416,3.25551742,1845.1,1845.0,5.42005]
[1743248041805,7.42e-06,1845.1,1845.0,9.18513674]
[1743248042004,7.42e-06,1845.1,1845.0,10.75709943]
[1743248042211,3.57575226,1845.5,1845.0,11.30709943]
[1743248042418,2.26e-06,1845.5,1845.4,10.78586176]
[1743248042723,2.26e-06,1845.5,1845.4,20.79086176]
[1743248043319,1.5599,1846.7,1846.5,5.41545]
[1743248043518,1.5599,1847.1,1846.6,5.41531]
[1743248043888,1.5599,1847.1,1846.7,5.41489]
[1743248044209,8.5559,1847.4,1847.0,5.41418]